[Event "1st Turkish League 2017"]
[Site "Konya"]
[Date "2017.07.20"]
[Round "6"]
[White "Demirtas, Hafize"]
[Black "Saim, Sida"]
[Result "1/2-1/2"]
[ECO "D35"]
[WhiteElo "1676"]
[BlackElo "1634"]
[Annotator "NA"]
[PlyCount "175"]
[EventType "team-tourn"]
[EventCountry "TUR"]
[SourceTitle "playchess.com"]
[Source "ChessBase"]
[SourceQuality "1"]
[TimeControl "5400+30"]

1. d4 {[%emt 0:00:30]} d5 {[%emt 0:01:00]} 2. c4 {[%emt 0:00:30]} e6 {[%emt 0:00:30]} 3. Nc3 {[%emt 0:00:00]} Nf6 {[%emt 0:00:00]} 4. cxd5 {[%emt 0:00:00]} exd5 {[%emt 0:00:00]} 5. Qc2 {[%emt 0:00:00]} c6 {[%emt 0:00:30]} 6. Nf3 {[%emt 0:00:00]} Be7 {[%emt 0:01:30]} 7. Bf4 {[%emt 0:00:30]} O-O {[%emt 0:00:00]} 8. e3 {[%emt 0:00:00]} Re8 {[%emt 0:02:00]} 9. Bd3 {[%emt 0:00:00]} h6 {[%emt 0:01:30]} 10. h3 {[%emt 0:00:30]} a6 {[%emt 0:02:30]} 11. O-O-O {[%emt 0:00:30]} b5 {[%emt 0:01:30]} 12. Rdg1 {[%emt 0:00:30]} Bd6 {[%emt 0:03:30]} 13. Bxd6 {[%emt 0:01:30]} Qxd6 {[%emt 0:00:30]} 14. g4 {[%emt 0:06:30]} c5 {[%emt 0:09:30]} 15. dxc5 {[%emt 0:13:30]} Qxc5 {[%emt 0:00:30]} 16. g5 {[%emt 0:01:30]} hxg5 {[%emt 0:01:30]} 17. Rxg5 {[%emt 0:03:30]} b4 {[%emt 0:04:30]} 18. Nxd5 {[%emt 0:08:30]} Qxc2+ {[%emt 0:01:30]} 19. Kxc2 {[%emt 0:00:30]} Nxd5 {[%emt 0:02:30]} 20. Rxd5 {[%emt 0:00:30]} Bb7 {[%emt 0:10:30]} 21. Rf5 {[%emt 0:05:30]} Nd7 {[%emt 0:02:30]} 22. Rg1 {[%emt 0:03:30]} Rac8+ {[%emt 0:00:30]} 23. Kd2 {[%emt 0:06:30]} Bxf3 {[%emt 0:00:30]} 24. Rxf3 {[%emt 0:00:30]} Ne5 {[%emt 0:01:30]} 25. Rfg3 {[%emt 0:00:30]} Red8 {[%emt 0:00:30]} 26. e4 {[%emt 0:04:30]} g6 {[%emt 0:01:30]} 27. Rb1 {[%emt 0:04:30]} Rc4 {[%emt 0:06:30]} 28. f4 {[%emt 0:03:30]} Nxd3 {[%emt 0:00:30]} 29. Rxd3 {[%emt 0:00:30]} Re8 {[%emt 0:00:00]} 30. Re1 {[%emt 0:04:30]} Rcxe4 {[%emt 0:01:00]} 31. Rxe4 {[%emt 0:00:30]} Rxe4 {[%emt 0:00:00]} 32. Rf3 {[%emt 0:00:00]} f5 {[%emt 0:07:00]} 33. Kc2 {[%emt 0:01:00]} a5 {[%emt 0:00:00]} 34. Kb3 {[%emt 0:02:30]} Re2 {[%emt 0:02:00]} 35. a3 {[%emt 0:02:30]} bxa3 {[%emt 0:02:30]} 36. bxa3 {[%emt 0:01:30]} Re4 {[%emt 0:00:30]} 37. Kc3 {[%emt 0:11:54]} Kg7 {[%emt 0:03:30]} 38. Kb3 {[%emt 0:02:18]} Kh6 {[%emt 0:00:00]} 39. Kc3 {[%emt 0:00:23]} Kh5 {[%emt 0:03:00]} 40. Kd3 {[%emt 0:00:14]} Kh4 {[%emt 0:02:30]} 41. Kd2 {[%emt 0:01:31]} Rc4 {[%emt 0:01:30]} 42. Kd1 {[%emt 0:01:36]} a4 {[%emt 0:03:30]} 43. Kd2 {[%emt 0:00:35]} Re4 {[%emt 0:03:30]} 44. Kd1 {[%emt 0:00:25]} Rd4+ {[%emt 0:01:30]} 45. Kc2 {[%emt 0:01:00]} Rc4+ {[%emt 0:01:30]} 46. Kd1 {[%emt 0:00:34]} Re4 {[%emt 0:03:15]} 47. Kd2 {[%emt 0:00:35]} Kh5 {[%emt 0:00:04]} 48. Kd1 {[%emt 0:00:22]} Kh6 {[%emt 0:00:03]} 49. Kd2 {[%emt 0:00:22]} Kg7 {[%emt 0:00:09]} 50. Kd3 {[%emt 0:00:39]} Kf6 {[%emt 0:00:05]} 51. Kd2 {[%emt 0:00:15]} Ke6 {[%emt 0:00:47]} 52. Re3 {[%emt 0:07:10]} Kd5 {[%emt 0:00:51]} 53. Rd3+ {[%emt 0:00:29]} Ke6 {[%emt 0:01:28]} 54. Re3 {[%emt 0:00:26]} Kd5 {[%emt 0:00:44]} 55. Rd3+ {[%emt 0:00:02]} Kc5 {[%emt 0:02:32]} 56. Rc3+ {[%emt 0:00:19]} Kb5 {[%emt 0:03:18]} 57. Rf3 {[%emt 0:00:17]} Kc5 {[%emt 0:03:13]} 58. Rc3+ {[%emt 0:00:07]} Kd5 {[%emt 0:02:06]} 59. Rd3+ {[%emt 0:00:07]} Ke6 {[%emt 0:03:51]} 60. Re3 {[%emt 0:00:01]} Kd5 {[%emt 0:01:52]} 61. Rd3+ {[%emt 0:00:30]} Kc4 {[%emt 0:00:00]} 62. Rc3+ {[%emt 0:00:12]} Kb5 {[%emt 0:00:17]} 63. Rf3 {[%emt 0:00:00]} Rc4 {[%emt 0:00:16]} 64. Kd3 {[%emt 0:03:38]} Kc5 {[%emt 0:00:06]} 65. h4 {[%emt 0:02:52]} Kd5 {[%emt 0:00:41]} 66. Rf1 {[%emt 0:01:19]} Re4 {[%emt 0:00:22]} 67. Rf3 {[%emt 0:01:04]} Re1 {[%emt 0:00:26]} 68. Rg3 {[%emt 0:01:10]} Rh1 {[%emt 0:00:17]} 69. Rxg6 {[%emt 0:00:35]} Rxh4 {[%emt 0:00:05]} 70. Rg3 {[%emt 0:00:23]} Rxf4 {[%emt 0:00:08]} 71. Re3 {[%emt 0:00:12]} Rd4+ {[%emt 0:00:22]} 72. Kc3 {[%emt 0:00:36]} Rc4+ {[%emt 0:01:03]} 73. Kd3 {[%emt 0:00:20]} Rg4 {[%emt 0:00:52]} 74. Kc3 {[%emt 0:00:51]} f4 {[%emt 0:01:02]} 75. Re8 {[%emt 0:00:15]} f3 {[%emt 0:00:26]} 76. Kd3 {[%emt 0:00:20]} Rf4 {[%emt 0:01:13]} 77. Rd8+ {[%emt 0:00:32]} Ke6 {[%emt 0:01:33]} 78. Re8+ {[%emt 0:00:11]} Kf5 {[%emt 0:00:32]} 79. Ke3 {[%emt 0:00:26]} Kg6 {[%emt 0:02:00]} 80. Rg8+ {[%emt 0:00:54]} Kf7 {[%emt 0:00:43]} 81. Rg1 {[%emt 0:00:13]} Rc4 {[%emt 0:00:29]} 82. Kxf3 {[%emt 0:00:45]} Rc3+ {[%emt 0:00:30]} 83. Ke4 {[%emt 0:00:00]} Rxa3 {[%emt 0:00:07]} 84. Kd4 {[%emt 0:00:00]} Ra2 {[%emt 0:00:59]} 85. Kc3 {[%emt 0:00:07]} Ke6 {[%emt 0:00:24]} 86. Rd1 {[%emt 0:00:18]} Rh2 {[%emt 0:00:30]} 87. Kb4 {[%emt 0:00:32]} Rh4+ {[%emt 0:00:18]} 88. Ka3 {[%emt 0:00:17]} 1/2-1/2

[Event "1st Turkish League 2017"]
[Site "Konya"]
[Date "2017.07.21"]
[Round "7"]
[White "Bivol, Alina"]
[Black "Khukhashvili, Sopiko"]
[Result "1-0"]
[ECO "C01"]
[WhiteElo "2379"]
[BlackElo "2339"]
[Annotator "NA"]
[PlyCount "77"]
[EventType "team-tourn"]
[EventCountry "TUR"]
[SourceTitle "playchess.com"]
[Source "ChessBase"]
[SourceQuality "1"]
[TimeControl "5400+30"]

1. e4 {[%emt 0:00:30]} e6 {[%emt 0:01:00]} 2. d4 {[%emt 0:00:30]} d5 {[%emt 0:00:30]} 3. Bd3 {[%emt 0:00:00]} Nf6 {[%emt 0:01:30]} 4. e5 {[%emt 0:01:00]} Nfd7 {[%emt 0:00:00]} 5. Ne2 {[%emt 0:00:30]} c5 {[%emt 0:00:00] C01: French: Exchange Variation} 6. c3 {[%emt 0:00:00] LiveBook: 7 Games} b6 {[%emt 0:01:30]} 7. O-O {[%emt 0:05:00]} (7. Nf4 Qc7 8. Qh5 cxd4 9. Nxe6 Qxe5+ 10. Qxe5 Nxe5 11. Bb5+ Bd7 12. Nxd4 Nbc6 13. Nxc6 Bxc6 {1-0 (68) Vavulin,M (2453)-Bortnyk,O (2533) Moscow 2015}) 7... Ba6 {[%emt 0:00:30]} 8. Bc2 {[%emt 0:01:30]} Nc6 {[%emt 0:00:30]} 9. Be3 $146 {[%emt 0:00:30]} ({Predecessor:} 9. Re1 cxd4 10. Nxd4 Ncxe5 11. f4 Nc4 12. Rxe6+ fxe6 13. Qh5+ g6 14. Bxg6+ hxg6 15. Qxg6+ Ke7 16. Qxe6# {1-0 (16) Janaszak,D (2389)-Michalski,D (2077) Zgierz 2017}) 9... Rc8 {[%emt 0:01:30]} 10. f4 {[%emt 0:12:30]} g6 {[%emt 0:00:30]} 11. Rf2 {[%emt 0:03:30]} cxd4 {[%emt 0:05:30]} 12. Nxd4 {[%emt 0:00:30]} Nxd4 {[%emt 0:00:00]} 13. Bxd4 {[%emt 0:00:30]} Bc5 {[%emt 0:00:00]} 14. Nd2 {[%emt 0:00:30]} O-O {[%emt 0:02:30]} 15. Nf3 {[%emt 0:02:30]} Be7 {[%emt 0:01:30]} 16. Qd2 {[%emt 0:05:30]} Nc5 {[%emt 0:00:00]} 17. Qe3 {[%emt 0:01:30]} Qd7 {[%emt 0:01:00]} 18. Rd1 {[%emt 0:02:30]} Qc6 $16 {[%emt 0:03:30]} 19. g4 {[%emt 0:00:30]} Ne4 {[%emt 0:03:30]} 20. Rg2 {[%emt 0:01:30]} Rfd8 {[%emt 0:00:30]} 21. h4 {[%emt 0:05:30]} b5 {[%emt 0:03:30]} 22. a3 {[%emt 0:00:30]} Bb7 {[%emt 0:01:30]} 23. f5 {[%emt 0:03:30]} Bf8 {[%emt 0:00:30]} 24. h5 {[%emt 0:02:30]} a5 {[%emt 0:01:30]} 25. hxg6 {[%emt 0:03:30]} fxg6 {[%emt 0:00:30]} 26. Rh2 {[%emt 0:01:30]} h6 {[%emt 0:12:30]} 27. Nh4 {[%emt 0:07:30]} g5 {[%emt 0:01:30]} 28. Ng6 {[%emt 0:00:30]} Qe8 {[%emt 0:00:00]} 29. Kg2 {[%emt 0:04:30]} Rd7 {[%emt 0:05:00]} 30. Nxf8 {[%emt 0:02:30]} Qxf8 {[%emt 0:00:30]} 31. fxe6 {[%emt 0:00:30]} Rh7 {[%emt 0:02:30]} 32. Rf1 {[%emt 0:00:30]} Qg7 {[%emt 0:00:30]} 33. Rf6 {[%emt 0:01:30]} b4 {[%emt 0:00:30]} 34. Bxe4 {[%emt 0:03:30]} dxe4 {[%emt 0:00:30]} 35. Kg3 {[%emt 0:00:00]} bxa3 {[%emt 0:04:30]} 36. bxa3 {[%emt 0:00:00]} Rf8 {[%emt 0:00:30]} 37. Rhf2 {[%emt 0:00:30]} Rxf6 {[%emt 0:01:30]} 38. exf6 {[%emt 0:00:30]} Qc7+ {[%emt 0:01:30]} 39. Kh3 {[%emt 0:00:30]} 1-0

[Event "1st Turkish League 2017"]
[Site "Konya"]
[Date "2017.07.21"]
[Round "7"]
[White "Dogan, Nazmi Can"]
[Black "Rzayev, Askar Aliakbar"]
[Result "1-0"]
[ECO "B52"]
[WhiteElo "2242"]
[BlackElo "2080"]
[Annotator "NA"]
[PlyCount "57"]
[EventType "team-tourn"]
[EventCountry "TUR"]
[SourceTitle "playchess.com"]
[Source "ChessBase"]
[SourceQuality "1"]
[TimeControl "5400+30"]

1. e4 {[%emt 0:00:30]} c5 {[%emt 0:01:00]} 2. Nf3 {[%emt 0:00:00]} d6 {[%emt 0:00:00]} 3. Bb5+ {[%emt 0:00:00]} Bd7 {[%emt 0:01:00]} 4. Bxd7+ {[%emt 0:00:30]} Qxd7 {[%emt 0:00:00]} 5. O-O {[%emt 0:00:30]} Nf6 {[%emt 0:00:00]} 6. Re1 {[%emt 0:00:30]} Nc6 {[%emt 0:00:30]} 7. c3 {[%emt 0:00:30]} e6 {[%emt 0:00:00]} 8. d4 {[%emt 0:00:30]} cxd4 {[%emt 0:00:00]} 9. cxd4 {[%emt 0:00:00]} d5 {[%emt 0:00:30]} 10. e5 {[%emt 0:00:00]} Ne4 {[%emt 0:00:00]} 11. Nbd2 {[%emt 0:00:30]} Nxd2 {[%emt 0:02:00]} 12. Bxd2 {[%emt 0:00:30]} Be7 {[%emt 0:00:00]} 13. Rc1 {[%emt 0:00:30]} O-O {[%emt 0:00:00]} 14. Rc3 {[%emt 0:02:30]} Rfc8 {[%emt 0:03:30]} 15. a3 {[%emt 0:03:30]} a5 {[%emt 0:02:30] LiveBook: 3 Games} 16. Rd3 {[%emt 0:00:30]} a4 {[%emt 0:00:30]} 17. Ng5 $11 {[%emt 0:01:30]} h6 {[%emt 0:12:30]} 18. Nh3 {[%emt 0:05:30]} f5 {[%emt 0:08:30]} 19. exf6 {[%emt 0:01:30]} Bxf6 {[%emt 0:00:30]} 20. Qg4 {[%emt 0:15:30]} Ra6 {[%emt 0:08:30]} 21. Bc3 {[%emt 0:11:30]} Re8 {[%emt 0:08:30]} 22. Nf4 {[%emt 0:02:30]} Na7 {[%emt 0:22:30]} 23. Rh3 {[%emt 0:11:30]} Bg5 {[%emt 0:09:30]} 24. Nd3 {[%emt 0:00:30]} Qc7 {[%emt 0:08:48]} 25. f4 {[%emt 0:02:30]} Bf6 {[%emt 0:00:18]} 26. Rxh6 {[%emt 0:00:30]} Qf7 {[%emt 0:01:00]} 27. Ne5 {[%emt 0:01:30]} Bxe5 {[%emt 0:01:38]} 28. Rxe5 {[%emt 0:00:30]} Nc6 {[%emt 0:04:02]} 29. Rg5 {[%emt 0:04:30]} 1-0

[Event "1st Turkish League 2017"]
[Site "Konya"]
[Date "2017.07.21"]
[Round "7"]
[White "Caglar, Ahmet Ata"]
[Black "Sari, Yasin"]
[Result "0-1"]
[ECO "E63"]
[WhiteElo "2082"]
[BlackElo "2195"]
[Annotator "NA"]
[PlyCount "56"]
[EventType "team-tourn"]
[EventCountry "TUR"]
[SourceTitle "playchess.com"]
[Source "ChessBase"]
[SourceQuality "1"]
[TimeControl "5400+30"]

1. d4 {[%emt 0:00:30]} Nf6 {[%emt 0:01:00]} 2. c4 {[%emt 0:00:00]} g6 {[%emt 0:00:30]} 3. Nc3 {[%emt 0:00:00]} Bg7 {[%emt 0:00:00]} 4. Nf3 {[%emt 0:04:30]} O-O {[%emt 0:01:00]} 5. g3 {[%emt 0:02:30]} d6 {[%emt 0:00:30]} 6. Bg2 {[%emt 0:00:30]} Nc6 {[%emt 0:00:00]} 7. O-O {[%emt 0:00:30]} a6 {[%emt 0:00:00]} 8. Bf4 {[%emt 0:00:30]} h6 $14 {[%emt 0:06:30]} 9. Nd5 {[%emt 0:24:30]} g5 {[%emt 0:04:30]} 10. Nxf6+ {[%emt 0:01:30]} Bxf6 {[%emt 0:00:30]} 11. Be3 {[%emt 0:00:00]} Bf5 {[%emt 0:16:30]} 12. d5 {[%emt 0:06:00]} Na5 {[%emt 0:01:30]} 13. Nd4 {[%emt 0:00:30]} Bd7 {[%emt 0:04:30]} 14. Rc1 {[%emt 0:18:30]} e5 {[%emt 0:10:30]} 15. dxe6 {[%emt 0:00:30]} fxe6 {[%emt 0:00:30]} 16. Qd3 {[%emt 0:03:30]} Kg7 {[%emt 0:04:30]} 17. h4 {[%emt 0:07:30]} Nc6 {[%emt 0:04:30]} 18. hxg5 {[%emt 0:04:30]} hxg5 {[%emt 0:02:30]} 19. f4 {[%emt 0:00:30]} g4 {[%emt 0:09:30]} 20. Bxc6 {[%emt 0:02:30]} bxc6 {[%emt 0:00:30]} 21. Qe4 {[%emt 0:00:00]} Qe8 {[%emt 0:05:30]} 22. c5 {[%emt 0:06:40]} d5 {[%emt 0:01:30]} 23. Qg2 {[%emt 0:00:01]} Rh8 {[%emt 0:03:30]} 24. Nb3 {[%emt 0:08:20]} Rh3 {[%emt 0:07:46]} 25. Kf2 {[%emt 0:00:30]} e5 {[%emt 0:00:50]} 26. Rh1 {[%emt 0:05:15]} Qg6 {[%emt 0:07:22]} 27. Rxh3 {[%emt 0:03:03]} gxh3 {[%emt 0:00:30]} 28. Qf3 {[%emt 0:00:00]} d4 {[%emt 0:00:41]} 0-1

[Event "1st Turkish League 2017"]
[Site "Konya"]
[Date "2017.07.21"]
[Round "7"]
[White "Korkmaz, Necmettin"]
[Black "Annaberdiyev, Babageldi"]
[Result "1/2-1/2"]
[ECO "B15"]
[WhiteElo "2078"]
[BlackElo "2262"]
[Annotator "NA"]
[PlyCount "131"]
[EventType "team-tourn"]
[EventCountry "TUR"]
[SourceTitle "playchess.com"]
[Source "ChessBase"]
[SourceQuality "1"]
[TimeControl "5400+30"]

1. e4 {[%emt 0:00:30]} c6 {[%emt 0:01:00]} 2. d4 {[%emt 0:00:30]} d5 {[%emt 0:00:30]} 3. Nc3 {[%emt 0:01:30]} dxe4 {[%emt 0:00:30]} 4. Nxe4 {[%emt 0:00:30]} Nf6 {[%emt 0:00:00]} 5. Nxf6+ {[%emt 0:00:00]} exf6 {[%emt 0:00:00]} 6. Bc4 {[%emt 0:01:00]} Bd6 {[%emt 0:00:30]} 7. Qe2+ {[%emt 0:01:30]} Qe7 {[%emt 0:00:30]} 8. Qxe7+ {[%emt 0:00:30]} Kxe7 {[%emt 0:00:00]} 9. Ne2 {[%emt 0:00:30]} Re8 {[%emt 0:00:00]} 10. O-O {[%emt 0:06:30]} Bf5 {[%emt 0:01:30]} 11. c3 {[%emt 0:01:30]} Nd7 {[%emt 0:12:30]} 12. Bf4 {[%emt 0:03:30]} b5 {[%emt 0:04:30]} 13. Bb3 {[%emt 0:04:30]} Nb6 {[%emt 0:02:30]} 14. Rfe1 {[%emt 0:03:30]} Be6 {[%emt 0:00:30]} 15. Bc2 $11 {[%emt 0:05:30]} a5 {[%emt 0:21:30]} 16. Bxd6+ {[%emt 0:03:30]} Kxd6 {[%emt 0:00:30]} 17. Ng3 {[%emt 0:00:00]} g6 {[%emt 0:13:30]} 18. Ne4+ {[%emt 0:05:00]} Ke7 {[%emt 0:00:00]} 19. Nc5 {[%emt 0:02:30]} Kf8 {[%emt 0:01:00]} 20. a4 {[%emt 0:04:30]} Bd5 {[%emt 0:04:30]} 21. axb5 {[%emt 0:01:30]} cxb5 {[%emt 0:00:00]} 22. Be4 {[%emt 0:01:30]} Bxe4 {[%emt 0:02:00]} 23. Nxe4 {[%emt 0:00:00]} Re6 {[%emt 0:03:30]} 24. Kf1 {[%emt 0:05:00]} a4 {[%emt 0:03:30]} 25. Nc5 {[%emt 0:00:30]} Rc6 {[%emt 0:03:30]} 26. b3 {[%emt 0:06:30]} a3 {[%emt 0:00:30]} 27. Re2 {[%emt 0:09:30]} Rc7 {[%emt 0:00:30]} 28. Rc2 {[%emt 0:03:30]} Nd5 {[%emt 0:06:49]} 29. c4 {[%emt 0:03:30]} bxc4 {[%emt 0:02:23]} 30. Rxc4 {[%emt 0:00:30]} a2 {[%emt 0:06:31]} 31. Rc2 {[%emt 0:05:30]} Rca7 {[%emt 0:00:56]} 32. Na4 {[%emt 0:01:30]} Rb8 {[%emt 0:00:35]} 33. Nc5 {[%emt 0:00:30]} Rba8 {[%emt 0:00:30]} 34. Nd3 {[%emt 0:04:07]} Rb8 {[%emt 0:02:05]} 35. Nc1 {[%emt 0:03:05]} Nb4 {[%emt 0:00:42]} 36. Rc4 {[%emt 0:00:32]} Rd7 {[%emt 0:00:00]} 37. Ke2 {[%emt 0:00:58]} Rxd4 {[%emt 0:01:30]} 38. Rxd4 {[%emt 0:00:30]} Nc2 {[%emt 0:00:00]} 39. Rxa2 {[%emt 0:03:15]} Nxd4+ {[%emt 0:00:03]} 40. Kf1 {[%emt 0:00:38]} Rc8 {[%emt 0:00:21]} 41. Ra1 {[%emt 0:00:17]} Rc2 {[%emt 0:00:42]} 42. Rb1 {[%emt 0:00:46]} Nb5 {[%emt 0:00:39]} 43. Nd3 {[%emt 0:00:33]} Rc3 {[%emt 0:00:59]} 44. Nc1 {[%emt 0:00:41]} h5 {[%emt 0:01:10]} 45. Ne2 {[%emt 0:02:28]} Rc2 {[%emt 0:00:14]} 46. Rd1 {[%emt 0:01:05]} Rb2 {[%emt 0:00:13]} 47. Nc1 {[%emt 0:00:34]} Rb1 {[%emt 0:00:39]} 48. g3 {[%emt 0:01:12]} Nc3 {[%emt 0:02:18]} 49. Re1 {[%emt 0:00:01]} f5 {[%emt 0:00:08]} 50. Ne2 {[%emt 0:01:57]} Rxb3 {[%emt 0:00:10]} 51. Nxc3 {[%emt 0:00:00]} Rxc3 {[%emt 0:00:03]} 52. Kg2 {[%emt 0:01:40]} Kg7 {[%emt 0:00:30]} 53. f4 {[%emt 0:00:30]} Rc2+ {[%emt 0:00:00]} 54. Kh3 {[%emt 0:00:00]} f6 {[%emt 0:00:02]} 55. Re7+ {[%emt 0:00:30]} Kf8 {[%emt 0:00:17]} 56. Ra7 {[%emt 0:00:36]} g5 {[%emt 0:01:05]} 57. fxg5 {[%emt 0:00:09]} fxg5 {[%emt 0:00:00]} 58. Rh7 {[%emt 0:02:35]} g4+ {[%emt 0:02:53]} 59. Kh4 {[%emt 0:00:05]} Rxh2+ {[%emt 0:00:37]} 60. Kg5 {[%emt 0:00:02]} h4 {[%emt 0:01:20]} 61. gxh4 {[%emt 0:00:44]} Rf2 {[%emt 0:01:22]} 62. Kf6 {[%emt 0:02:06]} Ke8 {[%emt 0:01:53]} 63. Rg7 {[%emt 0:00:15]} Rf3 {[%emt 0:02:34]} 64. h5 {[%emt 0:00:30]} Rh3 {[%emt 0:00:03]} 65. Kxf5 {[%emt 0:00:41]} Rxh5+ {[%emt 0:00:41]} 66. Kxg4 {[%emt 0:00:06]} 1/2-1/2

[Event "1st Turkish League 2017"]
[Site "Konya"]
[Date "2017.07.21"]
[Round "7"]
[White "Koc, Ilkay"]
[Black "Keler, Faruk"]
[Result "0-1"]
[ECO "B94"]
[WhiteElo "2074"]
[BlackElo "2262"]
[Annotator "NA"]
[PlyCount "94"]
[EventType "team-tourn"]
[EventCountry "TUR"]
[SourceTitle "playchess.com"]
[Source "ChessBase"]
[SourceQuality "1"]
[TimeControl "5400+30"]

1. e4 {[%emt 0:00:30]} c5 {[%emt 0:02:00]} 2. Nf3 {[%emt 0:00:00]} d6 {[%emt 0:00:00]} 3. d4 {[%emt 0:00:00]} cxd4 {[%emt 0:00:00]} 4. Nxd4 {[%emt 0:00:30]} Nf6 {[%emt 0:00:30]} 5. Nc3 {[%emt 0:00:30]} a6 {[%emt 0:00:30]} 6. Bg5 {[%emt 0:00:00]} Nbd7 {[%emt 0:00:30]} 7. Bc4 {[%emt 0:00:00]} Qb6 {[%emt 0:00:30]} 8. Bb3 {[%emt 0:00:00]} e6 {[%emt 0:01:30]} 9. Qd2 {[%emt 0:02:00]} Be7 {[%emt 0:00:30]} 10. O-O-O {[%emt 0:02:30]} Nc5 {[%emt 0:00:30]} 11. f3 {[%emt 0:02:30]} Bd7 {[%emt 0:07:30]} 12. Kb1 $11 {[%emt 0:01:30]} Qc7 {[%emt 0:06:30]} 13. Qe2 {[%emt 0:19:30]} O-O {[%emt 0:07:30]} 14. f4 {[%emt 0:02:30]} Bc6 {[%emt 0:08:30]} 15. e5 {[%emt 0:15:30]} dxe5 {[%emt 0:07:30]} 16. fxe5 {[%emt 0:01:30]} Nfe4 {[%emt 0:03:30]} 17. Bxe7 {[%emt 0:07:30]} Nxc3+ {[%emt 0:06:30]} 18. bxc3 {[%emt 0:00:30]} Qxe7 {[%emt 0:00:30]} 19. Nxc6 {[%emt 0:01:30]} bxc6 {[%emt 0:00:00]} 20. Rd6 {[%emt 0:01:30]} a5 {[%emt 0:05:00]} 21. a4 {[%emt 0:05:30]} Rfb8 {[%emt 0:04:30]} 22. Qc4 {[%emt 0:06:30]} Nxb3 {[%emt 0:00:30]} 23. cxb3 {[%emt 0:00:30]} Qg5 {[%emt 0:00:30]} 24. Re1 {[%emt 0:00:00]} Qxg2 {[%emt 0:01:30]} 25. h4 {[%emt 0:03:00]} Rb6 {[%emt 0:04:30]} 26. Red1 {[%emt 0:01:30]} h5 {[%emt 0:00:30]} 27. R1d2 {[%emt 0:00:30]} Qf3 {[%emt 0:04:30]} 28. Ka2 {[%emt 0:02:30]} Rab8 {[%emt 0:00:30]} 29. Rd8+ {[%emt 0:03:30]} Rxd8 {[%emt 0:00:30]} 30. Rxd8+ {[%emt 0:00:30]} Kh7 {[%emt 0:00:30]} 31. Qc5 {[%emt 0:01:30]} Qg2+ {[%emt 0:04:30]} 32. Ka3 {[%emt 0:00:30]} Rb7 {[%emt 0:00:30]} 33. Rd6 {[%emt 0:01:43]} Qh1 {[%emt 0:05:57]} 34. Ka2 {[%emt 0:01:05]} Qxh4 {[%emt 0:01:32]} 35. Rd2 {[%emt 0:03:27]} Qf4 {[%emt 0:04:45]} 36. Rc2 {[%emt 0:01:55]} Qe4 {[%emt 0:03:21]} 37. Rd2 {[%emt 0:00:17]} h4 {[%emt 0:03:57]} 38. Qxa5 {[%emt 0:01:15]} Qf4 {[%emt 0:00:06]} 39. c4 {[%emt 0:02:48]} Qe3 {[%emt 0:00:18]} 40. Rb2 {[%emt 0:00:29]} Rd7 {[%emt 0:00:36]} 41. Qa6 {[%emt 0:01:15]} Rd2 {[%emt 0:00:14]} 42. Qxc6 {[%emt 0:04:44]} Rxb2+ {[%emt 0:00:30]} 43. Kxb2 {[%emt 0:00:00]} Qe2+ {[%emt 0:00:00]} 44. Ka3 {[%emt 0:01:06]} h3 {[%emt 0:00:03]} 45. Qh1 {[%emt 0:00:19]} Qg2 {[%emt 0:01:16]} 46. Qb1+ {[%emt 0:01:50]} Kh8 {[%emt 0:00:30]} 47. Qd1 {[%emt 0:00:30]} h2 {[%emt 0:00:00]} 0-1